bitfinex/quotes_ETHUSD_20220309
["timestamp","ask_amount","ask_price","bid_price","bid_amount"]
[1646864424742,0.00360183,2719.3,2718.8,0.07433465]
[1646864425743,0.96354245,2719.5,2718.8,0.07433465]
[1646864425948,0.00360183,2719.3,2718.8,0.07433465]
[1646864427049,0.00360183,2719.3,2718.7,1.19249486]
[1646864427250,0.00360183,2719.3,2718.7,1.27657207]
[1646864428097,0.96354245,2719.5,2718.7,1.27657207]
[1646864428297,0.00360189,2719.3,2718.7,1.27657207]
[1646864429303,0.96354245,2719.5,2718.7,1.27657207]
[1646864429503,0.00360189,2719.3,2718.7,1.27657207]
[1646864429904,0.00360189,2719.3,2718.7,1.30574007]
[1646864430503,0.96354245,2719.5,2718.7,1.30574007]
[1646864430703,0.00360189,2719.3,2718.7,1.30574007]
[1646864431404,0.00360189,2719.3,2718.7,1.27657207]
[1646864431633,0.96354245,2719.5,2718.7,1.27657207]
[1646864431832,0.00360188,2719.3,2718.7,1.27657207]
[1646864432834,0.96354245,2719.5,2718.7,1.27657207]
[1646864433032,0.00360188,2719.3,2718.7,1.27657207]
[1646864434139,0.96354245,2719.5,2718.7,1.27657207]
[1646864434438,0.00360188,2719.3,2718.7,1.27657207]
[1646864435038,0.00360188,2719.3,2718.8,0.10643139]
[1646864435287,0.91998,2719.5,2718.8,0.10643139]
[1646864435494,0.00360188,2719.3,2718.8,0.10643139]
[1646864435791,0.00360188,2719.3,2718.8,0.07726339]
[1646864436396,1.91998,2719.5,2718.9,0.029168]
[1646864436592,1.6,2719.6,2718.9,0.029168]
[1646864436794,0.00360193,2719.3,2718.9,0.029168]
[1646864436992,0.00360193,2719.3,2719.1,0.029168]
[1646864437393,0.00360193,2719.3,2718.9,0.029168]
[1646864437594,4.37626,2719.7,2719.0,0.029168]
[1646864437794,0.00080301,2719.0,2718.9,0.029168]
[1646864438194,0.00080301,2719.0,2718.9,1.55728745]
[1646864438395,0.00080301,2719.0,2718.9,0.029168]
[1646864438594,0.00080301,2719.0,2718.8,0.07726339]
[1646864439337,0.00080301,2719.0,2718.8,0.10643139]
[1646864440141,0.00080301,2719.0,2718.6,0.08294]
[1646864440339,0.00080301,2719.0,2718.7,1.52820206]
[1646864440539,0.00080301,2719.0,2718.8,0.07693488]
[1646864440941,0.00080301,2719.0,2718.7,0.029168]
[1646864441141,0.00080301,2719.0,2718.6,0.0955907]
[1646864441341,0.00080301,2719.0,2718.7,1.52823432]
[1646864442038,0.00080301,2719.0,2718.6,0.00674236]
[1646864442240,0.00080301,2719.0,2718.7,1.52829956]
[1646864442885,0.00080301,2719.0,2718.7,1.52712017]
[1646864444194,0.92097301,2719.0,2718.6,0.00674236]
[1646864445193,2.07131319,2718.7,2718.6,0.00674236]
[1646864445391,5.57131319,2718.7,2718.6,0.00674236]
[1646864445591,5.87131319,2718.7,2718.6,0.00674236]
[1646864445791,6.87131319,2718.7,2718.6,0.00674236]
[1646864445992,5.72031,2718.7,2718.6,0.00674236]
[1646864447939,2.22031,2718.7,2718.6,0.00674236]
[1646864448239,1.22031,2718.7,2718.6,0.00674236]
[1646864450788,4.72031,2718.7,2718.6,0.00674236]
[1646864451190,5.72031,2718.7,2718.6,0.00674236]
[1646864452094,2.22031,2718.7,2718.6,0.00674236]
[1646864452295,1.22031,2718.7,2718.6,0.00674236]
[1646864458692,1.22031,2718.7,2717.5,0.67220299]
[1646864458895,1.22031,2718.7,2716.7,1.61242133]
[1646864458896,0.029168,2717.6,2716.7,1.61242133]
[1646864459099,0.94376469,2718.2,2717.8,0.04554166]
[1646864459100,1.0483,2717.9,2717.8,0.04554166]
[1646864459306,0.029168,2717.5,2716.3,0.89653572]
[1646864459502,1.84159,2717.5,2716.2,0.6720508]
[1646864459702,0.06561868,2717.3,2716.2,0.6720508]
[1646864459900,0.06561868,2717.3,2716.5,1.21207876]
[1646864459901,4.48641868,2717.3,2716.5,1.21207876]
[1646864460102,0.0708238,2717.2,2716.5,1.21207876]
[1646864460503,0.9916838,2717.2,2716.5,1.21207876]
[1646864460700,1.84174,2717.1,2716.5,1.21207876]
[1646864460896,1.84174,2717.1,2716.7,0.0010832]
[1646864461099,1.84174,2717.1,2717.0,0.9595391]
[1646864461556,0.92075,2717.1,2717.0,0.9595391]
[1646864461938,0.92075,2717.1,2716.5,0.3678]
[1646864462140,0.92075,2717.1,2716.9,0.00360197]
[1646864462940,0.92075,2717.1,2717.0,0.8961395]
[1646864463142,0.92075,2717.1,2717.0,2.42511635]
[1646864463340,0.92075,2717.1,2717.0,0.8961395]
[1646864463841,0.92075,2717.1,2717.0,2.42512883]
[1646864464644,0.92075,2717.1,2717.0,0.8961395]
[1646864466888,0.92075,2717.1,2716.9,0.0035677]
[1646864467691,0.92075,2717.1,2716.7,1.52905138]
[1646864467893,0.92075,2717.1,2716.8,0.9003292]
[1646864468297,0.92075,2717.1,2716.9,0.00357273]
[1646864468895,0.92075,2717.1,2716.8,0.9003292]
[1646864469145,0.92075,2717.1,2716.9,0.00357273]
[1646864470156,0.92075,2717.1,2716.7,1.52906396]
[1646864470345,0.92075,2717.1,2716.9,0.00107182]
[1646864471347,0.92075,2717.1,2716.8,1.09885633]
[1646864471550,0.92075,2717.1,2716.9,0.00107161]
[1646864472550,0.92075,2717.1,2716.8,1.09885633]
[1646864472800,0.92075,2717.1,2716.9,0.00107161]
[1646864473398,0.92057,2717.4,2716.9,3.50107161]
[1646864473797,1.07698054,2717.8,2717.1,11.67108564]
[1646864473997,0.05448497,2718.1,2717.2,0.05851965]
[1646864474601,0.05448497,2718.1,2717.4,1.00142887]
[1646864475201,0.05448497,2718.1,2717.5,0.00368464]
[1646864475404,0.92044,2717.9,2717.5,0.00368464]
[1646864476001,0.92046,2717.8,2717.5,0.00368464]
[1646864476201,0.92046,2717.8,2717.2,0.05851965]
[1646864476401,0.92046,2717.8,2717.6,0.00368462]
[1646864477242,2.82764051,2717.8,2717.6,0.00368462]
[1646864477443,0.92056,2717.7,2716.9,0.0731514]
[1646864477641,0.92056,2717.7,2716.7,0.05835012]
[1646864477642,0.92059,2717.6,2716.7,0.05835012]
[1646864477842,0.91945115,2717.6,2716.8,1.52901529]
[1646864478047,0.91945115,2717.6,2716.9,0.06180873]
[1646864478241,0.91945115,2717.6,2716.9,0.92637062]
[1646864478443,0.91945115,2717.6,2716.9,0.99868868]
[1646864478743,0.91945115,2717.6,2716.9,0.92637062]
[1646864478941,0.05826211,2717.4,2717.1,0.00354918]
[1646864479346,0.97885211,2717.4,2717.1,0.00354918]
[1646864479744,0.97885211,2717.4,2717.0,0.48945543]
[1646864479944,0.97885211,2717.4,2717.1,0.00106475]
[1646864480389,0.92059,2717.4,2717.1,0.00106475]
[1646864480989,0.91945115,2717.6,2717.5,0.48945543]
[1646864482191,1.84122,2717.6,2717.5,0.48945543]
[1646864486949,2.76186,2717.7,2717.5,0.48945543]
[1646864487147,0.05616959,2717.6,2717.5,0.48945543]
[1646864488291,0.97676959,2717.6,2717.5,0.48945543]
[1646864488694,1.00593759,2717.6,2717.5,0.48945543]
[1646864489698,1.0719126,2717.6,2717.5,0.48945543]
[1646864490700,1.0719126,2717.6,2716.4,1.2138]
[1646864490902,1.8418,2717.3,2716.2,7.32]
[1646864491105,0.029168,2716.5,2716.3,1.5292936]
[1646864491299,0.029168,2716.5,2715.9,3.03572823]
[1646864491559,0.04666368,2716.9,2716.0,1.52946453]
[1646864491747,0.029168,2716.2,2716.0,2.65829321]
[1646864491946,0.029168,2716.2,2716.0,1.12882868]
[1646864492146,0.9209,2716.7,2716.0,1.12882868]
[1646864492347,0.05560736,2716.6,2716.0,1.12882868]
[1646864492548,0.029168,2716.2,2716.0,1.12882868]
[1646864492748,0.05560736,2716.6,2716.0,1.12882868]
[1646864492749,0.08477536,2716.6,2716.0,1.12882868]
[1646864493149,0.08477536,2716.6,2715.8,0.022489]
[1646864493351,0.08477536,2716.6,2716.0,0.00376803]
[1646864493352,3.58477536,2716.6,2716.0,0.00376803]
[1646864493551,0.04837249,2716.5,2716.0,0.00376803]
[1646864493752,0.029168,2716.2,2716.0,0.00376803]
[1646864494252,0.0466657,2716.3,2715.7,1.15062778]
[1646864494553,3.5466657,2716.3,2716.0,0.00376803]
[1646864494755,0.05130952,2716.2,2716.0,0.00376803]
[1646864494956,0.029168,2716.1,2716.0,0.00376803]
[1646864495393,0.029168,2716.1,2715.6,1.52966617]
[1646864495593,3.55130952,2716.2,2715.9,0.00127527]
[1646864495594,3.5,2716.2,2715.9,0.00127527]
[1646864495792,0.04741609,2716.1,2715.9,0.00127527]
[1646864495994,0.029168,2716.0,2715.9,0.00127527]
[1646864496194,1.92104,2716.3,2715.9,0.00127527]
[1646864496396,0.04551808,2716.1,2715.9,0.00127527]
[1646864496597,0.04551808,2716.1,2715.5,1.52974074]
[1646864496793,0.04551808,2716.1,2715.8,0.00375596]
[1646864497194,0.92109,2716.0,2715.8,0.00375596]
[1646864497794,0.92109,2716.0,2715.5,1.52974074]
[1646864497996,0.92109,2716.0,2715.8,0.00375599]
[1646864498695,0.029168,2715.9,2715.8,0.00375599]
[1646864498901,0.029168,2715.9,2715.5,1.52974074]
[1646864499151,0.029168,2715.9,2715.4,1.14588216]
[1646864499353,0.029168,2715.9,2715.8,0.00375599]
[1646864499953,0.085459,2715.9,2715.8,0.00375599]
[1646864500150,0.085459,2715.9,2715.5,0.50990929]
[1646864500352,0.085459,2715.9,2715.7,0.50990929]
[1646864500653,0.085459,2715.9,2715.7,0.5136653]
[1646864500852,0.085459,2715.9,2715.8,0.50990929]
[1646864501055,1.84226,2716.0,2715.9,0.68082728]
[1646864507845,2.14226,2716.0,2715.9,0.68082728]
[1646864521945,5.69392718,2716.0,2715.9,0.68082728]
[1646864522348,6.69392718,2716.0,2715.9,0.68082728]
[1646864522744,3.19392718,2716.0,2715.9,0.68082728]
[1646864523144,2.19392718,2716.0,2715.9,0.68082728]
[1646864523345,3.19392718,2716.0,2715.9,0.68082728]
[1646864523546,2.19392718,2716.0,2715.9,0.68082728]
[1646864523745,3.19392718,2716.0,2715.9,0.68082728]
[1646864523944,2.19392718,2716.0,2715.9,0.68082728]
[1646864524149,3.19392718,2716.0,2715.9,0.68082728]
[1646864524349,5.69392718,2716.0,2715.9,0.68082728]
[1646864524550,6.69392718,2716.0,2715.9,0.68082728]
[1646864524953,3.19392718,2716.0,2715.9,0.68082728]
[1646864525392,2.19392718,2716.0,2715.9,0.68082728]
[1646864525593,3.19392718,2716.0,2715.9,0.68082728]
[1646864525793,2.19392718,2716.0,2715.9,0.68082728]
[1646864525993,3.19392718,2716.0,2715.9,0.67923549]
[1646864526194,2.19392718,2716.0,2715.9,0.67923549]
[1646864526393,2.19392718,2716.0,2715.9,0.62923549]
[1646864526394,3.19392718,2716.0,2715.9,0.62923549]
[1646864528097,2.19392718,2716.0,2715.9,0.62923549]
[1646864528298,3.19392718,2716.0,2715.9,0.62923549]
[1646864528498,2.19392718,2716.0,2715.9,0.62923549]
[1646864528697,3.19392718,2716.0,2715.9,0.62923549]
[1646864529051,2.19392718,2716.0,2715.9,0.62923549]
[1646864529246,3.19392718,2716.0,2715.9,0.62923549]
[1646864529446,2.19392718,2716.0,2715.9,0.62923549]
[1646864538560,2.14226,2716.0,2715.9,0.62923549]
[1646864547151,2.14226,2716.0,2715.9,0.62812063]
[1646864547797,2.33439374,2716.0,2715.9,0.62812063]
[1646864553679,2.33439374,2716.0,2715.9,1.02508863]
[1646864553680,2.03439374,2716.0,2715.9,1.02508863]
[1646864553981,0.92105,2716.2,2715.9,1.02508863]
[1646864554181,0.92105,2716.2,2716.1,0.87770929]
[1646864554379,0.92105,2716.2,2716.1,2.40743546]
[1646864560483,0.92105,2716.2,2716.1,0.87770929]
[1646864560682,0.92105,2716.2,2716.1,2.40742991]
[1646864561683,0.92105,2716.2,2716.1,0.87770929]
[1646864561883,0.92105,2716.2,2716.1,2.40740276]
[1646864563717,0.92105,2716.2,2716.1,0.59327725]
[1646864564113,0.92105,2716.2,2716.1,2.12298673]
[1646864564317,0.92105,2716.2,2716.1,2.12297865]
[1646864564916,0.92105,2716.2,2716.1,0.59327725]
[1646864566021,0.92105,2716.2,2716.1,0.08336796]
[1646864566220,0.92105,2716.2,2716.1,0.59327725]
[1646864566417,0.92105,2716.2,2716.1,2.12298371]
[1646864570320,0.92105,2716.2,2716.1,2.1218063]
[1646864571312,0.92105,2716.2,2716.1,2.03961575]
[1646864580513,1.22105,2716.2,2716.1,2.03961575]
[1646864580914,1.22105,2716.2,2716.1,2.03960988]
[1646864582059,1.22105,2716.2,2716.0,0.51346349]
[1646864582355,1.22105,2716.2,2716.1,2.03960826]
[1646864582557,1.22105,2716.2,2716.1,2.06877626]
[1646864582558,0.3,2716.2,2716.1,2.06877626]
[1646864582758,0.3,2716.3,2716.1,2.06877626]
[1646864582958,0.3,2716.3,2716.2,2.03960826]
[1646864583157,1.22099,2716.4,2716.2,2.03960826]
[1646864583359,1.22099,2716.4,2716.3,0.50990929]
[1646864584364,1.22099,2716.4,2716.1,0.029168]
[1646864584667,1.22099,2716.4,2716.3,0.50990929]
[1646864586408,1.22099,2716.4,2716.2,0.00355413]
[1646864586609,1.22099,2716.4,2716.3,0.50990929]
[1646864587410,1.22099,2716.4,2716.2,0.00355413]
[1646864587608,1.22099,2716.4,2716.3,0.50990929]
[1646864588412,1.22099,2716.4,2716.2,0.00355413]
[1646864588612,1.22099,2716.4,2716.3,0.50990929]
[1646864591272,0.3,2716.4,2716.3,0.50888818]
[1646864591471,1.3,2716.5,2716.3,0.50888818]
[1646864591670,0.3,2716.5,2716.3,0.50888818]
[1646864591872,5.2995,2716.7,2716.3,0.50888818]
[1646864592073,3.45749,2716.7,2716.3,0.50888818]
[1646864592270,2.45749,2716.7,2716.3,0.50888818]
[1646864592475,2.45749,2716.7,2716.2,0.03272212]
[1646864592476,3.45749,2716.7,2716.2,0.03272212]
[1646864592672,3.45749,2716.7,2716.2,0.029168]
[1646864592915,3.45749,2716.7,2716.4,0.00355406]
[1646864593117,3.45749,2716.7,2716.4,0.51244224]
[1646864593315,2.22099,2716.7,2716.4,0.51244224]
[1646864593515,2.22099,2716.7,2716.5,0.50888818]
[1646864593718,1.22099,2716.7,2716.5,0.50888818]
[1646864594617,1.22099,2716.7,2716.4,0.03272204]
[1646864594816,0.92099,2716.7,2716.4,0.03272204]
[1646864595022,1.11304384,2716.8,2716.6,0.50888818]
[1646864595217,0.92091,2716.8,2716.7,0.029168]
[1646864595417,0.92085,2717.1,2716.7,0.09816028]
[1646864595618,0.92085,2717.1,2716.9,0.029168]
[1646864596657,0.92085,2717.1,2716.9,0.03272185]
[1646864596858,1.22085,2717.1,2717.0,1.38940986]
[1646864597056,0.92085,2717.1,2717.0,1.38940986]
[1646864597257,1.22085,2717.1,2717.0,1.38940986]
[1646864597860,1.22085,2717.1,2716.9,0.11240719]
[1646864598060,1.22085,2717.1,2716.9,0.03024103]
[1646864598665,1.22085,2717.1,2717.0,0.029168]
[1646864598862,3.76295,2717.2,2717.0,0.029168]
[1646864599065,1.0,2717.2,2717.0,0.029168]
[1646864599265,0.92073,2717.3,2717.0,0.029168]
[1646864599465,1.22073,2717.3,2717.0,0.029168]
[1646864600067,1.22073,2717.3,2717.0,0.0328541]
[1646864601206,1.22073,2717.3,2717.0,0.029168]
[1646864601408,1.22073,2717.3,2717.0,0.0328541]
[1646864602210,1.22073,2717.3,2717.0,0.029168]
[1646864602609,1.22073,2717.3,2717.0,0.0328541]
[1646864603412,1.22073,2717.3,2717.0,0.029168]
[1646864603811,1.22073,2717.3,2717.0,0.12137594]
[1646864604764,1.22073,2717.3,2717.0,0.11786186]
[1646864604964,1.22073,2717.3,2717.0,0.12137594]
[1646864605963,1.22073,2717.3,2717.0,0.11786186]
[1646864606165,1.22073,2717.3,2717.0,0.12137594]
[1646864607166,1.22073,2717.3,2717.0,0.11786186]
[1646864607366,1.22073,2717.3,2717.0,0.12141164]
[1646864608213,1.22073,2717.3,2717.0,0.11786186]
[1646864608615,1.22073,2717.3,2717.0,0.12129709]
[1646864609421,1.22073,2717.3,2717.0,0.11786186]
[1646864609722,1.22073,2717.3,2717.0,0.12129709]
[1646864610722,1.22073,2717.3,2717.0,0.11786186]
[1646864610921,1.22073,2717.3,2717.0,0.12129939]
[1646864611120,1.22073,2717.3,2717.0,0.15046739]
[1646864611958,1.22073,2717.3,2717.0,0.14702986]
[1646864612159,1.22073,2717.3,2717.0,0.15058365]
[1646864613263,1.22073,2717.3,2717.0,0.14702986]
[1646864613464,1.22073,2717.3,2717.0,0.15058365]
[1646864613864,1.22073,2717.3,2717.0,0.14927952]
[1646864614264,1.22073,2717.3,2717.0,0.14572573]
[1646864614466,1.22073,2717.3,2717.0,0.14926958]
[1646864615509,1.22073,2717.3,2717.0,0.14572573]
[1646864615709,1.22073,2717.3,2717.0,0.14926958]
[1646864616812,1.22073,2717.3,2717.0,0.14572573]
[1646864617014,1.22073,2717.3,2717.0,0.14926958]
[1646864617816,1.22073,2717.3,2717.0,0.14572573]
[1646864618217,1.22073,2717.3,2717.0,0.14927116]
[1646864619163,1.22073,2717.3,2717.0,0.14572573]
[1646864619364,1.22073,2717.3,2717.0,0.14927116]
[1646864621465,1.22073,2717.3,2717.0,0.14572573]
[1646864621764,1.22073,2717.3,2717.0,0.14927093]
[1646864622664,1.22073,2717.3,2717.0,0.14572573]
[1646864622909,1.22073,2717.3,2717.0,0.14927093]
[1646864623813,1.22073,2717.3,2717.0,0.14572573]
[1646864624215,1.22073,2717.3,2717.0,0.14927093]
[1646864625116,1.22073,2717.3,2717.0,0.05703187]
[1646864625316,1.22073,2717.3,2717.0,0.0605771]
[1646864626324,1.22073,2717.3,2717.0,0.12763879]
[1646864626563,1.22073,2717.3,2717.0,0.13118402]
[1646864627563,1.22073,2717.3,2717.0,0.12763879]
[1646864627761,1.22073,2717.3,2717.0,0.13118402]
[1646864628662,1.22073,2717.3,2717.0,0.12763879]
[1646864628867,1.22073,2717.3,2717.0,0.13118401]
[1646864629264,1.21979996,2717.3,2717.0,0.13118401]
[1646864629865,1.21979996,2717.3,2717.0,0.09847079]
[1646864630336,1.21979996,2717.3,2717.0,0.10201601]
[1646864631127,1.21979996,2717.3,2717.0,0.09847079]
[1646864631329,1.21979996,2717.3,2717.0,0.10201601]
[1646864632329,1.21979996,2717.3,2717.0,0.09847079]
[1646864632528,1.21979996,2717.3,2717.0,0.10201601]
[1646864633429,1.21979996,2717.3,2717.0,0.09847079]
[1646864634063,1.21979996,2717.3,2717.0,0.10201602]
[1646864634663,1.21979996,2717.3,2717.0,0.09847079]
[1646864634863,1.21979996,2717.3,2717.0,0.02786387]
[1646864635066,1.21979996,2717.3,2717.0,0.0314091]
[1646864635863,1.21979996,2717.3,2717.0,0.02786387]
[1646864636264,1.21979996,2717.3,2717.0,0.0314091]
[1646864636571,3.11008716,2717.3,2717.0,0.0314091]
[1646864636764,3.8,2717.2,2717.0,0.00354523]
[1646864636964,5.092592,2717.2,2717.0,0.00354523]
[1646864637165,5.092592,2717.2,2716.8,0.029168]
[1646864637166,0.04969963,2717.0,2716.8,0.029168]
[1646864637368,0.04969963,2717.0,2716.6,0.029168]
[1646864637564,1.84192,2716.9,2716.6,0.029168]
[1646864637823,3.98379,2716.9,2716.6,0.029168]
[1646864638214,4.98379,2716.9,2716.6,0.029168]
[1646864638413,4.98379,2716.9,2716.6,0.03023476]
[1646864639016,4.98379,2716.9,2716.6,0.00106676]
[1646864639418,4.98379,2716.9,2716.5,0.1839]
[1646864639617,4.98379,2716.9,2716.6,0.00106676]
[1646864640618,4.98379,2716.9,2716.5,0.1839]
[1646864640819,1.89394518,2716.7,2716.5,0.1839]
[1646864641021,2.19394518,2716.7,2716.6,0.00368975]
[1646864641866,2.19394518,2716.7,2716.5,0.1839]
[1646864642261,2.19394518,2716.7,2716.5,0.1875898]
[1646864643162,2.19394518,2716.7,2716.5,0.1839]
[1646864643462,2.19394518,2716.7,2716.5,0.00368982]
[1646864644064,2.19394518,2716.7,2716.5,0.512578]
[1646864644267,2.19394518,2716.7,2716.5,0.50888818]
[1646864644469,0.92097,2716.6,2716.5,0.50888818]
[1646864644666,0.92097,2716.6,2716.5,0.51240295]
[1646864645067,0.92097,2716.6,2716.5,0.00351477]
[1646864645324,0.92085,2716.9,2716.5,0.51240295]
[1646864645516,1.0,2717.0,2716.8,0.029168]
[1646864645715,2.84162,2717.3,2716.9,0.029168]
[1646864645915,1.84162,2717.3,2716.9,0.029168]
[1646864646323,2.76234,2717.3,2717.2,0.058336]
[1646864646514,2.76234,2717.3,2717.2,0.029168]
[1646864646715,2.76234,2717.3,2716.9,0.029168]
[1646864646915,2.76234,2717.3,2717.1,0.00351393]
[1646864647617,4.06234,2717.3,2717.1,0.00351393]
[1646864648030,0.92076,2717.2,2716.8,0.029168]
[1646864648223,0.92076,2717.2,2717.1,0.03271808]
[1646864648419,1.1736,2717.4,2717.1,0.03271808]
[1646864648618,1.1736,2717.4,2717.2,0.029168]
[1646864648917,1.4736,2717.4,2717.3,0.5300774]
[1646864649172,1.4736,2717.4,2717.3,0.50888818]
[1646864649173,0.3,2717.4,2717.3,0.50888818]
[1646864649372,3.7167,2717.7,2717.3,0.50888818]
[1646864649573,4.63728,2717.7,2717.3,0.50888818]
[1646864649776,2.22058,2717.7,2717.3,0.50888818]
[1646864650173,2.22058,2717.7,2717.4,0.50888818]
[1646864650174,2.14116,2717.7,2717.4,0.50888818]
[1646864651075,2.14116,2717.7,2716.9,0.07745449]
[1646864651274,2.14116,2717.7,2717.1,0.50888818]
[1646864651875,2.14116,2717.7,2717.3,0.50888818]
[1646864651876,1.84116,2717.7,2717.3,0.50888818]
[1646864652075,1.2388,2717.9,2717.5,0.50888818]
[1646864652281,0.92048,2718.0,2717.3,0.07955434]
[1646864652478,0.92048,2718.0,2717.4,0.5907057]
[1646864653022,0.92048,2718.0,2717.6,0.50888818]
[1646864653223,1.22048,2718.0,2717.7,0.50888818]
[1646864653421,0.3,2718.0,2717.7,0.50888818]
[1646864654325,1.4876,2718.1,2717.8,0.50888818]
[1646864654525,0.3,2718.1,2717.8,0.50888818]
[1646864655127,1.35097401,2718.2,2717.8,0.50888818]
[1646864655328,1.97136401,2718.2,2717.9,0.50888818]
[1646864655728,1.91778054,2718.2,2717.9,0.50888818]
[1646864656327,1.91778054,2718.2,2717.8,0.00376904]
[1646864656328,1.91778054,2718.2,2717.7,0.0743377]
[1646864656564,1.91778054,2718.2,2717.8,0.00365606]
[1646864657363,1.8408,2718.2,2717.8,0.00365606]
[1646864657568,1.8408,2718.2,2717.7,0.0743377]
[1646864657764,1.8408,2718.2,2717.8,0.00365601]
[1646864658763,1.8408,2718.2,2717.7,0.0743377]
[1646864659068,4.22940506,2718.5,2717.8,0.51254419]
[1646864659267,3.30907506,2718.5,2717.9,0.08088814]
[1646864659467,3.30907506,2718.5,2717.9,0.50888818]
[1646864659867,3.30542,2718.5,2717.9,0.50888818]
[1646864660073,5.14631,2718.5,2717.9,0.50888818]
[1646864660327,5.14631,2718.5,2717.6,0.07940198]
[1646864660328,1.84091,2718.3,2717.8,0.00354745]
[1646864660515,2.19209946,2718.3,2717.8,0.00354745]
[1646864660717,0.05188272,2718.2,2717.8,0.00354745]
[1646864661115,0.05188272,2718.2,2717.4,0.10657619]
[1646864661318,0.9205,2718.0,2717.8,0.00106727]
[1646864662317,0.9205,2718.0,2717.4,0.59621337]
[1646864662621,0.9205,2718.0,2717.8,0.00106727]
[1646864662818,1.21578272,2718.2,2717.8,0.00106727]
[1646864663018,2.21578272,2718.2,2717.8,0.00106727]
[1646864663217,1.21578272,2718.2,2717.8,0.00106727]
[1646864663418,1.21578272,2718.2,2717.4,0.59621337]
[1646864663823,1.21578272,2718.2,2717.8,0.00370018]
[1646864664067,2.13621272,2718.2,2717.8,0.00370018]
[1646864664268,0.92043,2718.2,2717.8,0.00370018]
[1646864664469,3.14091,2718.3,2717.8,0.00370018]
[1646864664470,1.0,2718.3,2717.8,0.00370018]
[1646864664668,1.0,2718.3,2717.5,0.077642]
[1646864664869,2.43826073,2718.5,2718.0,0.01094804]
[1646864665070,2.74195994,2718.5,2718.0,0.01094804]
[1646864665272,3.74195994,2718.5,2718.0,0.01094804]
[1646864665469,4.66229994,2718.5,2718.0,0.01094804]
[1646864665870,1.0,2718.5,2718.0,0.01094804]
[1646864666172,1.00369944,2718.5,2718.0,0.01094804]
[1646864666369,0.00369944,2718.5,2718.0,0.01094804]
[1646864667170,1.4938,2718.7,2718.3,0.50888818]
[1646864667370,0.00355346,2718.5,2718.3,0.50888818]
[1646864668219,0.00355346,2718.5,2718.4,0.0806282]
[1646864668420,0.92021,2718.8,2718.4,0.0806282]
[1646864668617,0.00355352,2718.5,2718.4,0.0806282]
[1646864669624,0.92021,2718.8,2718.4,0.0806282]
[1646864669825,0.0035535,2718.6,2718.4,0.0806282]
[1646864670825,0.92021,2718.8,2718.4,0.0806282]
[1646864671671,0.9201,2719.0,2718.7,0.019251]
[1646864672866,1.84023,2719.0,2718.7,0.019251]
[1646864673567,1.84272433,2719.0,2718.7,0.0178243]
[1646864674370,1.84023,2719.0,2718.7,0.0178243]
[1646864674572,1.84400316,2719.0,2718.7,0.0178243]
[1646864675619,1.84023,2719.0,2718.7,0.0178243]
[1646864675815,1.84400316,2719.0,2718.7,0.0178243]
[1646864676014,1.84400316,2719.0,2718.5,0.01251382]
[1646864676617,0.00377316,2719.0,2718.5,0.01251382]
[1646864676820,1.84106,2719.5,2718.8,0.50888818]
[1646864676821,1.00096,2719.5,2718.8,0.50888818]
[1646864677016,0.0024945,2718.9,2718.8,12.53728818]
[1646864677214,0.0024945,2718.9,2718.8,12.62645226]
[1646864677820,0.00096,2719.7,2718.8,12.62645226]
[1646864678018,7.233668,2719.8,2718.9,0.59211688]
[1646864678019,3.734628,2719.8,2718.9,0.59211688]
[1646864678227,0.00250086,2719.0,2718.9,0.59211688]
[1646864679066,0.00096,2719.7,2718.9,0.59211688]
[1646864679271,0.029168,2719.8,2719.0,0.07413216]
[1646864679472,0.00378372,2719.1,2719.0,0.07413216]
[1646864680271,0.01513259,2719.5,2719.0,0.07413216]
[1646864680572,0.00378367,2719.2,2719.0,0.07413216]
[1646864681574,0.030128,2719.8,2719.0,0.07413216]
[1646864681775,0.00378364,2719.2,2719.0,0.07413216]
[1646864682829,0.030128,2719.8,2719.0,0.07413216]
[1646864683015,0.00378364,2719.2,2719.0,0.07413216]
[1646864684020,0.030128,2719.8,2719.0,0.07413216]
[1646864684222,0.00367013,2719.2,2719.0,0.07413216]
[1646864684925,0.00367013,2719.2,2719.1,0.01255425]
[1646864685124,0.030128,2719.8,2719.1,0.01255425]
[1646864685322,0.029168,2719.8,2719.1,0.01255425]
[1646864685524,0.00367013,2719.2,2719.1,0.01255425]
[1646864686324,0.030128,2719.8,2719.1,0.01255425]
[1646864686562,0.00367011,2719.3,2719.1,0.01255425]
[1646864687263,0.00367011,2719.3,2719.2,0.07218139]
[1646864687665,0.029168,2719.8,2719.2,0.07218139]
[1646864687965,0.00356808,2719.3,2719.2,0.07218139]
[1646864688767,0.029168,2719.8,2719.2,0.07218139]
[1646864688965,0.00356806,2719.4,2719.2,0.07218139]
[1646864689968,0.029168,2719.8,2719.2,0.07218139]
[1646864690173,0.00356804,2719.4,2719.2,0.07218139]
[1646864691225,0.029168,2719.8,2719.2,0.07218139]
[1646864691420,0.00357492,2719.4,2719.2,0.07218139]
[1646864692420,0.30096,2720.0,2719.2,0.07218139]
[1646864692621,0.00357492,2719.4,2719.3,0.50888818]
[1646864693522,3.46976,2720.1,2719.3,0.50888818]
[1646864693726,3.7688,2720.1,2719.4,0.50888818]
[1646864693925,0.0035749,2719.5,2719.4,0.50888818]
[1646864694875,0.91979,2720.0,2719.5,0.50888818]
[1646864695075,0.00357439,2719.6,2719.5,0.50888818]
[1646864695474,0.00357439,2719.6,2719.5,0.50808458]
[1646864695874,0.3,2719.9,2719.3,0.01251178]
[1646864696280,0.00357435,2719.7,2719.3,0.01251178]
[1646864697177,1.21979,2720.0,2719.3,0.01251178]
[1646864697375,0.0025022,2719.6,2719.3,0.01251178]
[1646864698419,1.21979,2720.0,2719.3,0.01251178]
[1646864698620,0.00358424,2719.6,2719.3,0.52059636]
[1646864698825,0.00358424,2719.6,2719.5,0.50808458]
[1646864699621,1.26692664,2720.3,2719.5,0.50808458]
[1646864699821,0.01433464,2720.1,2720.0,0.50808458]
[1646864700421,0.01433464,2720.1,2719.4,0.50808458]
[1646864700823,0.91972,2720.2,2719.4,0.50808458]
[1646864701023,1.83944,2720.2,2719.4,0.50808458]
[1646864701224,2.143024,2720.2,2719.4,0.50808458]
[1646864701872,2.143024,2720.2,2719.6,0.50808458]
[1646864702372,0.00363533,2719.9,2719.6,0.50808458]
[1646864702774,0.00363533,2719.9,2719.6,0.58923396]
[1646864703176,2.13944,2720.2,2719.6,0.58923396]
[1646864703375,0.00363535,2719.9,2719.6,0.58923396]
[1646864704376,2.13944,2720.2,2719.6,0.60181295]
[1646864704576,0.00363535,2719.9,2719.6,0.60181295]